fUSD/lending_fUSD_20240107
["ID","MTS","AMOUNT","RATE_DAILY","PERIOD"]
[310645369,1704622246484,-2898.16401334,0.00022999,2]
[310645370,1704622246494,-726.86187983,0.00022999,2]
[310645371,1704622246542,-1199.28025159,0.00022999,2]
[310645372,1704622246557,-1831.79786858,0.00022999,2]
[310645373,1704622246566,-442.20213142,0.00022999,2]
[310645374,1704622246592,-3315.73786858,0.00022999,2]
[310645375,1704622246602,-23.09248286,0.00022999,2]
[310645376,1704622246613,-469.89491661,0.00022999,2]
[310645377,1704622264184,203.0,0.00021821,2]
[310645378,1704622293882,206.0,0.00021821,2]
[310645379,1704622396533,1250.0,0.00021,3]
[310645380,1704622426617,225.45,0.00020775,2]
[310645381,1704622543266,152.53,0.00022242,2]
[310645382,1704622543647,152.53,0.00022413,2]
[310645383,1704622552400,355.85,0.00022023,2]
[310645384,1704622619051,1000.0,0.000301,120]
[310645385,1704622624576,524.08,0.00022083,2]
[310645386,1704622884043,161.62,0.00022314,2]
[310645387,1704622951860,4000.0,0.000225,2]
[310645388,1704622975580,4000.0,0.000225,2]
[310645389,1704622996689,332.12,0.00022148,2]
[310645390,1704623004122,924.04369349,0.000225,2]
[310645391,1704623004148,924.04369349,0.000225,2]
[310645392,1704623004174,349.93883722,0.000225,2]
[310645393,1704623016772,-467.69900866,0.00022583,2]
[310645394,1704623060381,580.73,0.00022139,2]
[310645395,1704623071464,266.25,0.00020105,2]
[310645396,1704623071687,266.25,0.00022369,2]
[310645398,1704623172419,157.79,0.00022383,2]
[310645404,1704623310134,159.03,0.00022379,2]
[310645405,1704623312285,177.32,0.00022212,2]
[310645410,1704623374825,2000.0,0.00022176,2]
[310645413,1704623414395,197.90035749,0.00022583,2]
[310645414,1704623416100,269.24,0.00022226,2]
[310645415,1704623417078,363.16,0.00022226,2]
[310645430,1704623434043,-152.53,0.00022584,2]
[310645431,1704623434052,-115.47,0.0002267,2]
[310645432,1704623434064,-327.87381065,0.0002267,2]
[310645433,1704623434151,-525.82748935,0.0002267,2]
[310645434,1704623434161,-152.53,0.00022755,2]
[310645435,1704623434170,-255.0,0.000229,2]
[310645436,1704623434179,-152.53,0.00022926,2]
[310645437,1704623434191,-52.43248039,0.00022962,2]
[310645438,1704623434210,-106.59751961,0.00022962,2]
[310645439,1704623434223,-834.0,0.00022969,2]
[310645440,1704623434233,-1068.37619548,0.00022998,2]
[310645441,1704623434245,-691.59727248,0.00022998,2]
[310645456,1704623438637,-202.88577123,0.00022998,2]
[310645457,1704623438646,-52.27676437,0.00022998,2]
[310645458,1704623438656,-0.21806441,0.00022999,3]
[310645459,1704623438668,-313.94153669,0.00022999,3]
[310645460,1704623438677,-864.24397783,0.00022999,2]
[310645461,1704623438689,-1725.91739606,0.00022999,2]
[310645462,1704623438701,-505.3196862,0.00022999,2]
[310645463,1704623438750,-193.09322272,0.00022999,2]
[310645464,1704623438759,-844.44052499,0.00022999,2]
[310645465,1704623438768,-200.0,0.00022999,2]
[310645466,1704623438777,-305.3347781,0.00022999,2]
[310645467,1704623438789,-209.74405929,0.00022999,2]
[310645468,1704623438798,-285.1210094,0.00022999,2]
[310645469,1704623438809,-214.8789906,0.00022999,2]
[310645470,1704623438819,-500.0,0.00022999,2]
[310645471,1704623438828,-1075.53,0.00022999,2]
[310645472,1704623438837,-98.31313923,0.00022999,2]
[310645473,1704623438849,-977.21686077,0.00022999,2]
[310645474,1704623438858,-1075.53,0.00022999,2]
[310645475,1704623438867,-1075.53,0.00022999,2]
[310645476,1704623438877,-1075.53,0.00022999,2]
[310645477,1704623438886,-346.19313923,0.00022999,2]
[310645505,1704623441193,-729.33686077,0.00022999,2]
[310645506,1704623441203,-1075.53,0.00022999,2]
[310645507,1704623441214,-1075.53,0.00022999,2]
[310645508,1704623441223,-1075.53,0.00022999,2]
[310645509,1704623441233,-1075.53,0.00022999,2]
[310645510,1704623441242,-1075.53,0.00022999,2]
[310645511,1704623441251,-1075.53,0.00022999,2]
[310645512,1704623441261,-1075.53,0.00022999,2]
[310645513,1704623441270,-1075.53,0.00022999,2]
[310645514,1704623441280,-837.51913923,0.00022999,2]
[310645526,1704623443417,-238.01086077,0.00022999,2]
[310645527,1704623443426,-1075.53,0.00022999,2]
[310645528,1704623443436,-1075.53,0.00022999,2]
[310645529,1704623443447,-1075.53,0.00022999,2]
[310645530,1704623443458,-1075.53,0.00022999,2]
[310645531,1704623443467,-1075.53,0.00022999,2]
[310645532,1704623443477,-1075.53,0.00022999,2]
[310645533,1704623443486,-1075.53,0.00022999,2]
[310645534,1704623443495,-1075.53,0.00022999,2]
[310645535,1704623443504,-391.43898894,0.00022999,2]
[310645536,1704623443539,-684.19818424,0.00022999,2]
[310645537,1704623443549,-542.59792815,0.00022999,2]
[310645538,1704623443559,-515.85262509,0.00022999,2]
[310645539,1704623443569,-508.28800286,0.00022999,2]
[310645540,1704623443579,-500.0,0.00022999,2]
[310645541,1704623443589,-500.0,0.00022999,2]
[310645542,1704623443599,-234.68940947,0.00022999,2]
[310645543,1704623443714,-273.81521749,0.00022999,2]
[310645545,1704623443724,-177.03652594,0.00022999,2]
[310645546,1704623443736,-303.76875419,0.00022999,2]
[310645547,1704623443749,-19.19471987,0.00022999,2]
[310645548,1704623443758,-500.0,0.00022999,2]
[310645549,1704623443768,-485.46774642,0.00022999,2]
[310645551,1704623443777,-251.04631423,0.00022999,2]
[310645554,1704623443789,-248.95368577,0.00022999,2]
[310645556,1704623443798,-500.0,0.00022999,2]
[310645557,1704623443807,-500.0,0.00022999,2]
[310645558,1704623443816,-500.0,0.00022999,2]
[310645560,1704623443826,-197.25886,0.00022999,2]
[310645562,1704623443835,-3288.57428281,0.00022999,2]
[310645564,1704623443845,-334.11582358,0.00023,3]
[310645565,1704623443854,-709.6,0.00023,2]
[310645566,1704623443863,-160627.27132532,0.00023,2]
[310645567,1704623446453,-440.765,0.00022999,2]
[310645568,1704623446464,-2510.50675055,0.00022999,2]
[310645569,1704623446477,-337.30253226,0.00022999,2]
[310645570,1704623446486,-227.4364678,0.00023,2]
[310645571,1704623446508,-56088.44049572,0.00023,2]
[310645572,1704623446519,-2636.92648583,0.00023,2]
[310645573,1704623446620,-13954.39679053,0.00023,2]
[310645574,1704623446632,-437.36462342,0.00023,2]
[310645575,1704623446679,-1792.79423048,0.00023,2]
[310645576,1704623446690,-420.43962155,0.00023,2]
[310645577,1704623446702,-3125.05586934,0.00023,2]
[310645578,1704623446713,-2863.5,0.00023,2]
[310645579,1704623472565,153.097749,0.00023,7]
[310645580,1704623493624,203.0,0.00022063,2]
[310645581,1704623514013,229.63063385,0.00019973,2]
[310645582,1704623514038,40.69936615,0.00019973,2]
[310645583,1704623514202,270.33,0.00022237,2]
[310645584,1704623524087,206.0,0.00022063,2]
[310645585,1704623589505,57.07549012,0.00021893,2]
[310645586,1704623589530,478.33450988,0.00021893,2]
[310645588,1704623720585,445.70918361,0.00021893,2]
[310645589,1704623720611,649.66869941,0.00021893,2]
[310645590,1704623728445,274.37499408,0.00021893,2]
[310645591,1704623728471,575.60053096,0.00021893,2]
[310645592,1704623734576,348.44316253,0.00021893,2]
[310645593,1704623734609,106.17122201,0.00021893,2]
[310645594,1704623742845,174.78,0.00021893,2]
[310645595,1704623743009,157.79,0.00022112,2]
[310645596,1704623746332,158.02,0.00022057,2]
[310645597,1704623746430,226.52822475,0.00021893,2]
[310645598,1704623746733,158.02,0.00022287,2]
[310645599,1704623751279,11053.35089794,0.00022734,7]
[310645600,1704623835838,1333.72,0.00022064,2]
[310645601,1704623861545,392.1,0.00021889,2]
[310645602,1704623934513,257.11,0.00019972,2]
[310645603,1704623934722,257.11,0.00022236,2]
[310645604,1704624065734,571.67,0.00021891,2]
[310645605,1704624167902,158.33,0.000221,2]
[310645606,1704624210194,1250.0,0.00021,3]
[310645607,1704624238561,177.32,0.00021879,2]
[310645608,1704624248989,158.02,0.00022044,2]
[310645609,1704624249192,158.02,0.00022426,2]
[310645610,1704624295192,272.35369349,0.00021879,2]
[310645611,1704624295214,93.60630651,0.00021879,2]
[310645612,1704624303643,157.79,0.00021879,2]
[310645613,1704624312263,155.0694758,0.00022,2]
[310645614,1704624350040,2000.0,0.00022,2]
[310645615,1704624368482,231.39,0.00019961,2]
[310645616,1704624368677,231.39,0.00022225,2]
[310645617,1704624432836,2000.0,0.000225,2]
[310645618,1704624512991,542.66,0.00021882,2]
[310645630,1704624631608,-2074.43829325,0.00022542,2]
[310645631,1704624631837,-12042.56170675,0.00022542,2]
[310645632,1704624631848,-155.0,0.00022701,2]
[310645633,1704624631861,-150.0,0.00022733,2]
[310645634,1704624631872,-150.0,0.00022734,2]
[310645635,1704624631882,-150.0,0.00022734,2]
[310645636,1704624631893,-150.0,0.00022736,2]
[310645637,1704624631904,-150.0,0.00022744,2]
[310645638,1704624631915,-150.0,0.00022746,2]
[310645639,1704624631925,-150.0,0.00022747,2]
[310645640,1704624631940,-150.0,0.00022748,2]
[310645641,1704624631950,-154.58667556,0.00022749,2]
[310645642,1704624631967,-150.0,0.00022752,2]
[310645643,1704624631977,-230.87861514,0.00022756,2]
[310645644,1704624631988,-150.0,0.00022759,2]
[310645645,1704624631999,-150.0,0.0002276,2]
[310645646,1704624632009,-150.0,0.00022761,2]
[310645647,1704624632021,-150.0,0.00022762,2]
[310645648,1704624632032,-150.0,0.00022765,2]
[310645649,1704624632043,-150.0,0.00022769,2]
[310645650,1704624632053,-150.0,0.00022771,2]
[310645651,1704624632063,-150.0,0.00022773,2]
[310645652,1704624632086,-300.0,0.00022775,2]
[310645653,1704624632099,-150.0,0.00022776,2]
[310645654,1704624632112,-150.0,0.00022781,2]
[310645655,1704624632124,-150.0,0.00022783,2]
[310645656,1704624632135,-150.0,0.00022788,2]
[310645657,1704624632147,-150.0,0.00022788,2]
[310645658,1704624632159,-150.0,0.00022793,2]
[310645659,1704624632172,-1500.0,0.00022795,2]
[310645660,1704624632184,-307.40170157,0.00022796,2]
[310645661,1704624632195,-150.0,0.00022796,2]
[310645662,1704624632206,-2360.0,0.000228,2]
[310645663,1704624632218,-150.0,0.000228,2]
[310645664,1704624632230,-7416.49783541,0.000228,2]
[310645665,1704624632246,-282.07001,0.000228,2]
[310645667,1704624637596,-7163.01719087,0.000228,2]
[310645668,1704624637767,-7423.41496372,0.000228,2]
[310645669,1704624637778,-150.0,0.00022805,2]
[310645670,1704624637788,-158.02,0.00022809,2]
[310645671,1704624637799,-150.0,0.00022811,2]
[310645672,1704624637809,-200.0,0.00022816,2]
[310645673,1704624637819,-150.0,0.00022817,2]
[310645674,1704624637830,-150.0,0.00022817,2]
[310645675,1704624637840,-150.0,0.00022823,2]
[310645676,1704624637850,-150.0,0.00022823,2]
[310645677,1704624637861,-150.0,0.00022823,2]
[310645678,1704624637871,-30074.78124897,0.0002283,2]
[310645679,1704624637881,-150.0,0.00022833,2]
[310645680,1704624637891,-150.0,0.0002284,2]
[310645681,1704624637902,-150.0,0.00022841,2]
[310645682,1704624637912,-150.0,0.00022842,2]
[310645683,1704624637922,-150.0,0.00022854,2]
[310645684,1704624637932,-203.0,0.00022857,2]
[310645685,1704624637942,-365.96,0.00022858,2]
[310645686,1704624637952,-150.0,0.00022859,2]
[310645687,1704624637962,-150.0,0.00022862,2]
[310645688,1704624637973,-150.0,0.00022863,2]
[310645689,1704624637983,-150.0,0.00022863,2]
[310645690,1704624637993,-150.0,0.00022863,2]
[310645691,1704624638004,-150.0,0.00022865,2]
[310645692,1704624638014,-150.0,0.00022873,2]
[310645693,1704624638024,-150.0,0.00022876,2]
[310645694,1704624638034,-150.0,0.00022878,2]
[310645695,1704624638043,-150.0,0.00022881,2]
[310645696,1704624638053,-150.0,0.00022883,2]
[310645697,1704624638064,-150.0,0.00022883,2]
[310645698,1704624638074,-150.0,0.00022889,2]
[310645699,1704624638084,-150.0,0.00022893,2]
[310645700,1704624638095,-150.0,0.00022896,2]
[310645701,1704624638106,-417.3726,0.000229,2]
[310645702,1704624638116,-2810.2567,0.000229,2]
[310645703,1704624638126,-18308.70707573,0.000229,2]
[310645704,1704624638136,-277.31201432,0.000229,2]
[310645705,1704624638146,-150.0,0.0002291,2]
[310645710,1704624638446,-150.0,0.00022912,2]
[310645711,1704624638464,-150.0,0.00022913,2]
[310645712,1704624638476,-150.0,0.00022914,2]
[310645713,1704624638486,-150.0,0.00022916,2]
[310645714,1704624638495,-150.0,0.00022919,2]
[310645715,1704624638505,-150.0,0.00022927,2]
[310645716,1704624638517,-150.0,0.0002293,2]
[310645717,1704624638528,-150.0,0.00022932,2]
[310645718,1704624638539,-150.0,0.00022937,2]
[310645719,1704624638549,-150.0,0.00022939,2]
[310645720,1704624638560,-152.71432783,0.00022942,2]
[310645721,1704624638569,-150.0,0.00022945,2]
[310645722,1704624638578,-150.0,0.00022948,2]
[310645723,1704624638587,-150.0,0.00022956,2]
[310645724,1704624638597,-150.0,0.00022957,2]
[310645725,1704624638607,-201.23379352,0.00022958,3]
[310645726,1704624638617,-306.60094349,0.00022958,2]
[310645727,1704624638628,-150.0,0.00022958,2]
[310645728,1704624638637,-150.0,0.0002296,2]
[310645729,1704624638647,-150.0,0.0002296,2]
[310645730,1704624638656,-150.0,0.00022963,2]
[310645731,1704624638666,-150.0,0.00022964,2]
[310645732,1704624638675,-150.0,0.00022964,2]
[310645733,1704624638684,-150.0,0.00022974,2]
[310645734,1704624638693,-150.0,0.00022975,2]
[310645735,1704624638703,-537.218,0.00022979,2]
[310645736,1704624638712,-2296.25,0.00022979,2]
[310645737,1704624638721,-150.0,0.00022979,2]
[310645738,1704624638731,-300.0,0.00022986,2]
[310645739,1704624638740,-150.0,0.00022988,2]
[310645740,1704624638751,-150.0,0.00022988,2]
[310645741,1704624638760,-150.0,0.00022988,2]
[310645742,1704624638769,-150.0,0.0002299,2]
[310645743,1704624638778,-3452.7575219,0.00022994,2]
[310645744,1704624638787,-1519.87111273,0.00022998,2]
[310645745,1704624638797,-1543.65306201,0.00022998,2]
[310645746,1704624638810,-5906.24779478,0.00022998,2]
[310645747,1704624638819,-150.0,0.00022998,2]
[310645748,1704624638828,-150.0,0.00022998,2]
[310645749,1704624638838,-3288.57428281,0.00022999,2]
[310645750,1704624638846,-500.0,0.00022999,2]
[310645751,1704624638856,-500.0,0.00022999,2]
[310645752,1704624638865,-500.0,0.00022999,2]
[310645753,1704624638875,-500.0,0.00022999,2]
[310645754,1704624638885,-500.0,0.00022999,2]
[310645755,1704624638894,-500.0,0.00022999,2]
[310645756,1704624638903,-500.0,0.00022999,2]
[310645757,1704624638912,-500.0,0.00022999,2]
[310645758,1704624638921,-395.5001,0.00022999,2]
[310645759,1704624638931,-500.0,0.00022999,2]
[310645760,1704624638940,-304.33178353,0.00022999,2]
[310645761,1704624638949,-500.0,0.00022999,2]
[310645762,1704624638958,-432.69894386,0.00022999,2]
[310645763,1704624638967,-500.0,0.00022999,2]
[310645764,1704624638976,-315.28600513,0.00022999,2]
[310645765,1704624638986,-500.0,0.00022999,2]
[310645766,1704624638994,-535.45763243,0.00022999,2]
[310645767,1704624639003,-500.0,0.00022999,2]
[310645768,1704624639012,-500.0,0.00022999,2]
[310645769,1704624639021,-500.0,0.00022999,2]
[310645770,1704624639030,-500.0,0.00022999,2]
[310645771,1704624639039,-500.0,0.00022999,2]
[310645772,1704624639048,-500.0,0.00022999,2]
[310645773,1704624639057,-500.0,0.00022999,2]
[310645774,1704624639066,-372.94096757,0.00022999,2]
[310645775,1704624639075,-371.95845896,0.00023,3]
[310645776,1704624639085,-23716.35736371,0.00023,2]
[310645777,1704624639109,-912.60619991,0.00023,2]
[310645779,1704624640097,-10031.63084713,0.00023,2]
[310645780,1704624640159,-356.11178615,0.00023,2]
[310645802,1704624642740,-3542.2,0.00023,2]
[310645803,1704624642752,-16374.7793937,0.00023,2]
[310645807,1704624645409,-4236.5462254,0.00022994,2]
[310645808,1704624645418,-30190.21761372,0.00023,2]
[310645810,1704624645685,-273.65144937,0.00023,2]
[310645811,1704624645959,-29181.32547917,0.00023,2]
[310645812,1704624681831,187.50033149,0.00021848,2]
[310645813,1704624712501,3000.0,0.00015,10]
[310645814,1704624743600,349.77907732,0.00021848,7]
[310645815,1704624769752,363.24,0.00022307,2]
[310645816,1704624804125,234.51,0.00020402,2]
[310645817,1704624873839,203.0,0.00021857,2]
[310645818,1704624929282,153.11,0.00022141,10]
[310645819,1704624945641,6659.0,0.000225,2]
[310645820,1704624958733,1712.0,0.00022466,2]
[310645821,1704624979136,565.87,0.00022141,2]
[310645822,1704625033660,157.79,0.00022352,2]
[310645823,1704625145205,5000.0,0.00022,2]
[310645824,1704625174384,164.82,0.00022305,2]
[310645825,1704625207513,185.17,0.00022181,2]
[310645827,1704625248947,339.02,0.00022247,2]
[310645828,1704625253525,4106.0,0.00022,3]
[310645829,1704625253549,894.0,0.00022,3]
[310645831,1704625299359,1546.0,0.00022466,2]
[310645832,1704625316426,1032.01346279,0.000301,90]
[310645833,1704625318650,234.98,0.00020304,2]
[310645834,1704625420865,2093.135182,0.000225,2]
[310645836,1704625472200,5000.0,0.000225,2]
[310645837,1704625491388,5000.0,0.000225,2]
[310645838,1704625495779,547.3,0.00022155,2]
[310645839,1704625503266,1146.0,0.00025,7]
[310645840,1704625695102,174.77,0.00022077,2]
[310645841,1704625706796,316.41,0.00022105,2]
[310645842,1704625742987,234.81,0.00020205,2]
[310645843,1704625743183,234.81,0.00022469,2]
[310645844,1704625743981,164.82,0.00022289,2]
[310645845,1704625753942,360.27718887,0.00022105,2]
[310645846,1704625775935,359.79398198,0.00022105,2]
[310645883,1704625837920,-186.94895203,0.00022701,2]
[310645884,1704625837930,-150.0,0.00022766,2]
[310645885,1704625837939,-3513.05104797,0.00022767,2]
[310645886,1704625837976,-5488.64717693,0.00022767,2]
[310645887,1704625838142,-454.68990075,0.00022767,2]
[310645888,1704625838154,-2342.65834162,0.00022767,2]
[310645889,1704625838166,-309.76685677,0.00022767,2]
[310645890,1704625838178,-408.51147977,0.00022767,2]
[310645891,1704625838189,-373.66222407,0.00022767,2]
[310645892,1704625838201,-11121.05593089,0.00022767,2]
[310645893,1704625838210,-306.34143347,0.00022768,2]
[310645894,1704625838221,-311.0,0.00022768,2]
[310645902,1704625841182,-24497.76209438,0.00022768,2]
[310645903,1704625841192,-205.1849684,0.00022899,3]
[310645904,1704625841202,-687.10140517,0.00022899,2]
[310645905,1704625841214,-4710.33759483,0.00022899,2]
[310645906,1704625841223,-496.3586,0.000229,2]
[310645907,1704625841233,-53494.1262,0.000229,2]
[310645908,1704625841242,-390.67974126,0.000229,2]
[310645909,1704625841251,-20114.6618333,0.00022995,2]
[310645910,1704625841260,-231.10495307,0.00022998,3]
[310645911,1704625841269,-2212.92722309,0.00022998,2]
[310645912,1704625841278,-629.92316277,0.00022998,2]
[310645913,1704625841288,-2099.41884489,0.00022998,2]
[310645914,1704625841301,-704.42632419,0.00022998,2]
[310645915,1704625841315,-384.08281053,0.00022998,2]
[310645918,1704625842810,-5408.99472763,0.00022998,2]
[310645928,1704625842974,-1442.40058248,0.00022998,2]
[310645937,1704625843121,-10.77887108,0.00022998,2]
[310645938,1704625843196,-478.98214885,0.00022998,2]
[310645939,1704625843206,-231.80467074,0.00022998,2]
[310645953,1704625845833,-2020.0,0.00022998,2]
[310645954,1704625845845,-856.58174698,0.00022998,2]
[310645955,1704625845943,-339.66350361,0.00022998,2]
[310645956,1704625845955,-299.02282421,0.00022998,2]
[310645957,1704625845967,-354.72076362,0.00022998,2]
[310645958,1704625846111,-3714.73315374,0.00022998,2]
[310645959,1704625846120,-156.04493895,0.00022998,2]
[310645960,1704625846129,-207.9220019,0.00022998,2]
[310645961,1704625846139,-249.22410942,0.00022998,2]
[310645962,1704625846149,-3428.49431744,0.00022998,4]
[310645963,1704625846170,-2281.18172202,0.00022998,2]
[310645964,1704625846180,-155.7425083,0.00022998,2]
[310645965,1704625846190,-246.76828525,0.00022998,2]
[310645966,1704625846199,-2903.01609823,0.00022998,2]
[310645967,1704625846210,-519.84508979,0.00022999,2]
[310645968,1704625846219,-500.0,0.00022999,2]
[310645970,1704625846228,-500.0,0.00022999,2]
[310645971,1704625846238,-556.70972803,0.00022999,2]
[310645972,1704625846247,-500.0,0.00022999,2]
[310645973,1704625846256,-500.0,0.00022999,2]
[310645974,1704625846267,-500.0,0.00022999,2]
[310645975,1704625846276,-500.0,0.00022999,2]
[310645976,1704625846286,-500.0,0.00022999,2]
[310645977,1704625846295,-500.0,0.00022999,2]
[310645978,1704625846304,-500.0,0.00022999,2]
[310645979,1704625846313,-500.0,0.00022999,2]
[310645980,1704625846322,-500.0,0.00022999,2]
[310645981,1704625846332,-500.0,0.00022999,2]
[310645982,1704625846341,-500.0,0.00022999,2]
[310645983,1704625846351,-500.0,0.00022999,2]
[310645984,1704625846360,-500.0,0.00022999,2]
[310645985,1704625846370,-500.0,0.00022999,2]
[310645986,1704625846380,-500.0,0.00022999,2]
[310645987,1704625846390,-500.0,0.00022999,2]
[310645988,1704625846400,-500.0,0.00022999,2]
[310645989,1704625846410,-500.0,0.00022999,2]
[310645990,1704625846420,-500.0,0.00022999,2]
[310645991,1704625846430,-207.94669178,0.00022999,2]
[310645992,1704625846439,-2398.47682685,0.00022999,2]
[310645993,1704625846448,-206.18214116,0.00023,3]
[310645994,1704625846457,-505.0,0.00023,2]
[310645995,1704625846467,-1368.96621572,0.00023,2]
[310645996,1704625903777,192.21815746,0.00020698,2]
[310645997,1704625924573,967.34,0.00022351,2]
[310645998,1704625969377,520.46663064,0.00022351,2]
[310645999,1704625983462,585.18013828,0.00022351,2]
[310646000,1704626023484,1250.0,0.00021,3]
[310646001,1704626161434,211.32,0.00020327,2]
[310646002,1704626188855,295.31,0.00022285,2]
[310646003,1704626284071,203.0,0.00022095,2]
[310646004,1704626378170,437.84,0.00022165,2]
[310646005,1704626452377,159.09,0.00022165,2]
[310646006,1704626452598,159.09,0.00022482,2]
[310646007,1704626470127,150.0,0.0002247,2]
[310646008,1704626609848,275.62,0.00022261,2]
[310646009,1704626692718,200.75,0.00020262,2]
[310646010,1704626799053,447.67369349,0.00022186,2]
[310646011,1704626799078,326.19630651,0.00022186,2]
[310646019,1704626953986,220.0,0.0002114,2]
[310646020,1704626959562,220.0,0.00020223,2]
[310646021,1704626965096,157.84738698,0.00019306,2]
[310646022,1704626965119,62.15261302,0.00019306,2]
[310646027,1704626970813,220.0,0.00018389,2]
[310646056,1704627035002,-200.75,0.00022526,2]
[310646057,1704627035012,-251.37315364,0.00022591,2]
[310646058,1704627035021,-251.37315364,0.00022591,2]
[310646059,1704627035031,-163.38368492,0.000227,4]
[310646060,1704627035043,-578.98987685,0.000227,4]
[310646061,1704627035054,-796.06136789,0.000227,4]
[310646062,1704627035075,-1321.89,0.000227,4]
[310646063,1704627035087,-597.45013377,0.000227,4]
[310646064,1704627035115,-211.11845503,0.000227,4]
[310646065,1704627035125,-155.0,0.00022701,2]
[310646066,1704627035134,-251.37315364,0.00022701,2]
[310646067,1704627035144,-247.17935471,0.00022768,2]
[310646068,1704627035153,-159.09,0.00022799,2]
[310646069,1704627035163,-710.6011,0.000229,2]
[310646070,1704627035173,-2658.25520852,0.000229,2]
[310646071,1704627035185,-654.5072355,0.000229,2]
[310646072,1704627035218,-754.26253463,0.000229,2]
[310646074,1704627035227,-518.65763839,0.000229,2]
[310646077,1704627035247,-1906.48637834,0.000229,2]
[310646078,1704627035257,-278.47294506,0.000229,2]
[310646079,1704627035267,-412.675,0.00022996,2]
[310646080,1704627035277,-247.99482065,0.00022998,3]
[310646081,1704627035287,-338.16719386,0.00022998,2]
[310646083,1704627035296,-155.46894105,0.00022998,2]
[310646084,1704627035306,-3273.42276382,0.00022998,2]
[310646086,1704627035320,-648.67805246,0.00022998,2]
[310646088,1704627035330,-266.13703053,0.00022998,2]
[310646133,1704627035778,257.24,0.00022203,2]
[310646165,1704627037960,-1934.00365308,0.00022998,2]
[310646166,1704627038071,-411.98876461,0.00022998,2]
[310646167,1704627038082,-2097.41332086,0.00022999,2]
[310646168,1704627038091,-185.46088939,0.00022999,2]
[310646169,1704627038101,-500.0,0.00022999,2]
[310646170,1704627038111,-500.0,0.00022999,2]
[310646171,1704627038120,-500.0,0.00022999,2]
[310646172,1704627038130,-600.64912862,0.00022999,2]
[310646173,1704627038139,-792.60044145,0.00022999,2]
[310646174,1704627038150,-792.60044145,0.00022999,2]
[310646175,1704627038159,-792.60044145,0.00022999,2]
[310646176,1704627038169,-792.60044145,0.00022999,2]
[310646177,1704627038179,-792.60044145,0.00022999,2]
[310646178,1704627038189,-792.60044145,0.00022999,2]
[310646179,1704627038198,-792.60044145,0.00022999,2]
[310646180,1704627038207,-792.60044145,0.00022999,2]
[310646181,1704627038217,-792.60044145,0.00022999,2]
[310646182,1704627038227,-792.60044145,0.00022999,2]
[310646183,1704627038237,-792.60044145,0.00022999,2]
[310646184,1704627038246,-792.60044145,0.00022999,2]
[310646185,1704627038256,-792.60044145,0.00022999,2]
[310646186,1704627038265,-1585.2008828,0.00022999,2]
[310646187,1704627038275,-64430.32625093,0.00023,2]
[310646188,1704627038293,-306497.67772233,0.00023,2]
[310646189,1704627038302,-281517.65386157,0.00023,2]
[310646190,1704627038314,-5070.42686116,0.00023,2]
[310646191,1704627038375,-399.71253246,0.00023,2]
[310646192,1704627038386,-523.55681014,0.00023,2]
[310646193,1704627038399,-1449.4855065,0.00023,2]
[310646194,1704627038410,-3177.99664968,0.00023,2]
[310646195,1704627038422,-537.8831543,0.00023,2]
[310646206,1704627040502,-3436.22337079,0.00023,2]